Department family,Entity,Date,Expense type,Expense area,Supplier,Transaction number,Amount
Department of Health,Leicestershire Partnership NHS Trust,01/08/18,External Data Processing / Storage,Records & information Governance,C & V DATA MANAGEMENT SRV LTD,0064185,31652.12
Department of Health,Leicestershire Partnership NHS Trust,02/08/18,Rent,"Syston Health Centre (New Building) (P127, LPT)",PHIP (5) LIMITED,LINV12273,37500.00
Department of Health,Leicestershire Partnership NHS Trust,02/08/18,HIS LPT Costs,HIS,THE PHOENIX PARTNERSHIP,9003,82091.54
Department of Health,Leicestershire Partnership NHS Trust,03/08/18,Payroll Deductions -Home Electronics 25 Aug 18,Balance Sheet Collection,SME HCI LTD,128549,31873.40
Department of Health,Leicestershire Partnership NHS Trust,03/08/18,Services / Recharges from NHS Trusts,Inter Unit I & E Distribution,UHL NHS TRUST (RWE),L0213444,179992.55
Department of Health,Leicestershire Partnership NHS Trust,03/08/18,Occupational Health,HR Operations,UHL NHS TRUST (RWE),L0213438,26622.00
Department of Health,Leicestershire Partnership NHS Trust,03/08/18,OCCUPATIONAL THERAPIST - AGENCY,Adult City West CMHT - BHSCC,MSI RECRUITMENT,MSIR200718,906.13
Department of Health,Leicestershire Partnership NHS Trust,03/08/18,PHYSIOTHERAPY - AGENCY,City Community Therapy,MSI RECRUITMENT,MSIR200718,2330.42
Department of Health,Leicestershire Partnership NHS Trust,03/08/18,PHYSIOTHERAPY - AGENCY,City ICS,MSI RECRUITMENT,MSIR200718,1356.96
Department of Health,Leicestershire Partnership NHS Trust,03/08/18,PHYSIOTHERAPY - AGENCY,Coalville Snibston Ward,MSI RECRUITMENT,MSIR200718,2265.62
Department of Health,Leicestershire Partnership NHS Trust,03/08/18,PODIATRIST - AGENCY,County Podiatry Service,MSI RECRUITMENT,MSIR200718,2735.52
Department of Health,Leicestershire Partnership NHS Trust,03/08/18,PHYSIOTHERAPY - AGENCY,East Community Therapy,MSI RECRUITMENT,MSIR200718,1351.02
Department of Health,Leicestershire Partnership NHS Trust,03/08/18,PHYSIOTHERAPY - AGENCY,H&B Comm Hosp East Ward,MSI RECRUITMENT,MSIR200718,1241.89
Department of Health,Leicestershire Partnership NHS Trust,03/08/18,PHYSIOTHERAPY - AGENCY,Integrated Care Service - Rutland,MSI RECRUITMENT,MSIR200718,1305.40
Department of Health,Leicestershire Partnership NHS Trust,03/08/18,OCCUPATIONAL THERAPIST - AGENCY,MHSOP Community Therapy,MSI RECRUITMENT,MSIR200718,1107.64
Department of Health,Leicestershire Partnership NHS Trust,03/08/18,Professional & Technical Agency,Medical & Neuro Psychology Services,MSI RECRUITMENT,MSIR200718,2460.13
Department of Health,Leicestershire Partnership NHS Trust,03/08/18,PHYSIOTHERAPY - AGENCY,Mental Health Physical Nurse Team,MSI RECRUITMENT,MSIR200718,2624.82
Department of Health,Leicestershire Partnership NHS Trust,03/08/18,SALT - AGENCY,Speech & Language Therapy,MSI RECRUITMENT,MSIR200718,4653.97
Department of Health,Leicestershire Partnership NHS Trust,03/08/18,OCCUPATIONAL THERAPIST - AGENCY,St Lukes Stroke Ward,MSI RECRUITMENT,MSIR200718,721.63
Department of Health,Leicestershire Partnership NHS Trust,06/08/18,Payroll Deductions -Salary Sacrifice Cars Scheme,Balance Sheet Collection,TUSKER,LPT801-0818,28070.64
Department of Health,Leicestershire Partnership NHS Trust,07/08/18,Crs_NHS_LT1y -Resus Inventory Supplied.,Balance Sheet Collection,NHS SUPPLY CHAIN (ST1450),1019086879,42439.61
Department of Health,Leicestershire Partnership NHS Trust,07/08/18,FP10'S,Adult City Central CMHT - St Peters,NHS BUS SERVICES AUTHORITY,1000056648,201.22
Department of Health,Leicestershire Partnership NHS Trust,07/08/18,FP10'S,Adult City East CMHT - St Peters,NHS BUS SERVICES AUTHORITY,1000056648,12374.86
Department of Health,Leicestershire Partnership NHS Trust,07/08/18,FP10'S,Adult County Drugs,NHS BUS SERVICES AUTHORITY,1000056648,32496.62
Department of Health,Leicestershire Partnership NHS Trust,07/08/18,FP10'S,CAMHS County Outpatients,NHS BUS SERVICES AUTHORITY,1000056648,16701.05
Department of Health,Leicestershire Partnership NHS Trust,07/08/18,FP10'S,Children Services Medical,NHS BUS SERVICES AUTHORITY,1000056648,6539.57
Department of Health,Leicestershire Partnership NHS Trust,07/08/18,FP10'S,Dementia Related Drugs and Investigations,NHS BUS SERVICES AUTHORITY,1000056648,5734.69
Department of Health,Leicestershire Partnership NHS Trust,07/08/18,FP10'S,Eating Disorders Outpatient Service,NHS BUS SERVICES AUTHORITY,1000056648,905.48
Department of Health,Leicestershire Partnership NHS Trust,07/08/18,FP10'S,Forensic Services - Community,NHS BUS SERVICES AUTHORITY,1000056648,100.61
Department of Health,Leicestershire Partnership NHS Trust,07/08/18,FP10'S,Leicestershire Psych-oncology Service,NHS BUS SERVICES AUTHORITY,1000056648,201.22
Department of Health,Leicestershire Partnership NHS Trust,07/08/18,FP10'S,PIER Team - Early Intervention Services,NHS BUS SERVICES AUTHORITY,1000056648,18310.79
Department of Health,Leicestershire Partnership NHS Trust,07/08/18,FP10'S,Pharmacy,NHS BUS SERVICES AUTHORITY,1000056648,1207.30
Department of Health,Leicestershire Partnership NHS Trust,07/08/18,FP10'S,Snr Med Staff (Inc Med Reps),NHS BUS SERVICES AUTHORITY,1000056648,5835.31
Department of Health,Leicestershire Partnership NHS Trust,08/08/18,Med Trainees - FY1,Medical Trainees,UHL NHS TRUST (RWE),L0213570,26593.00
Department of Health,Leicestershire Partnership NHS Trust,08/08/18,WIP Project Not in BS - Information Technology,Work in Progress,DELL COMPUTERS,7402459771,28911.60
Department of Health,Leicestershire Partnership NHS Trust,08/08/18,NURSE - BAND 2 - AGENCY,Beechwood Ward,HCL NURSING,MAN28239,1296.57
Department of Health,Leicestershire Partnership NHS Trust,08/08/18,Nurse - Band 6 -Agency,City East CMHT MHSOP,HCL NURSING,MAN28239,836.93
Department of Health,Leicestershire Partnership NHS Trust,08/08/18,NURSE - BAND 5 - AGENCY,City ICS,HCL NURSING,MAN28239,2288.50
Department of Health,Leicestershire Partnership NHS Trust,08/08/18,NURSE - BAND 5 - AGENCY,City Planned Care - East,HCL NURSING,MAN28239,4184.62
Department of Health,Leicestershire Partnership NHS Trust,08/08/18,NURSE - BAND 5 - AGENCY,City Planned Care - West,HCL NURSING,MAN28239,3551.89
Department of Health,Leicestershire Partnership NHS Trust,08/08/18,Nurse - Band 6 -Agency,City West CMHT MHSOP,HCL NURSING,MAN28239,641.93
Department of Health,Leicestershire Partnership NHS Trust,08/08/18,NURSE - BAND 2 - AGENCY,Clarendon Ward,HCL NURSING,MAN28239,1665.90
Department of Health,Leicestershire Partnership NHS Trust,08/08/18,NURSE - BAND 2 - AGENCY,Coalville Snibston Ward,HCL NURSING,MAN28239,934.33
Department of Health,Leicestershire Partnership NHS Trust,08/08/18,NURSE - BAND 5 - AGENCY,Coalville Snibston Ward,HCL NURSING,MAN28239,386.06
Department of Health,Leicestershire Partnership NHS Trust,08/08/18,NURSE - BAND 2 - AGENCY,Coalville Ward 2,HCL NURSING,MAN28239,180.21
Department of Health,Leicestershire Partnership NHS Trust,08/08/18,NURSE - BAND 2 - AGENCY,Coleman Ward,HCL NURSING,MAN28239,182.01
Department of Health,Leicestershire Partnership NHS Trust,08/08/18,NURSE - BAND 2 - AGENCY,Dalgliesh Ward,HCL NURSING,MAN28239,211.93
Department of Health,Leicestershire Partnership NHS Trust,08/08/18,NURSE - BAND 5 - AGENCY,Dalgliesh Ward,HCL NURSING,MAN28239,1158.19
Department of Health,Leicestershire Partnership NHS Trust,08/08/18,NURSE - BAND 3 - AGENCY,East Planned Care - Blaby/Lutterworth,HCL NURSING,MAN28239,825.15
Department of Health,Leicestershire Partnership NHS Trust,08/08/18,NURSE - BAND 5 - AGENCY,"East Planned Care - Melton,Syston,Rutland",HCL NURSING,MAN28239,2561.54
Department of Health,Leicestershire Partnership NHS Trust,08/08/18,NURSE - BAND 3 - AGENCY,"East Planned Care - Oadby,Wigston & Harborough",HCL NURSING,MAN28239,437.76
Department of Health,Leicestershire Partnership NHS Trust,08/08/18,NURSE - BAND 5 - AGENCY,"East Planned Care - Oadby,Wigston & Harborough",HCL NURSING,MAN28239,175.85
Department of Health,Leicestershire Partnership NHS Trust,08/08/18,NURSE - BAND 5 - AGENCY,Evening Service,HCL NURSING,MAN28239,1195.08
Department of Health,Leicestershire Partnership NHS Trust,08/08/18,NURSE - BAND 5 - AGENCY,Fielding Palmer Nursing,HCL NURSING,MAN28239,2037.35
Department of Health,Leicestershire Partnership NHS Trust,08/08/18,NURSE - BAND 2 - AGENCY,Gwendolen Ward,HCL NURSING,MAN28239,2025.79
Department of Health,Leicestershire Partnership NHS Trust,08/08/18,NURSE - BAND 5 - AGENCY,Gwendolen Ward,HCL NURSING,MAN28239,302.58
Department of Health,Leicestershire Partnership NHS Trust,08/08/18,NURSE - BAND 2 - AGENCY,H&B Comm Hosp East Ward,HCL NURSING,MAN28239,1129.71
Department of Health,Leicestershire Partnership NHS Trust,08/08/18,NURSE - BAND 2 - AGENCY,H&B Comm Hosp North Ward,HCL NURSING,MAN28239,2554.66
Department of Health,Leicestershire Partnership NHS Trust,08/08/18,NURSE - BAND 2 - AGENCY,Kirby Ward,HCL NURSING,MAN28239,647.86
Department of Health,Leicestershire Partnership NHS Trust,08/08/18,NURSE - BAND 5 - AGENCY,Kirby Ward,HCL NURSING,MAN28239,663.77
Department of Health,Leicestershire Partnership NHS Trust,08/08/18,NURSE - BAND 2 - AGENCY,Lough Swithland Ward,HCL NURSING,MAN28239,1376.57
Department of Health,Leicestershire Partnership NHS Trust,08/08/18,NURSE - BAND 5 - AGENCY,Lough Swithland Ward,HCL NURSING,MAN28239,406.23
Department of Health,Leicestershire Partnership NHS Trust,08/08/18,Nurse - Band 6 -Agency,MHSOP Integrated Care Team,HCL NURSING,MAN28239,1046.16
Department of Health,Leicestershire Partnership NHS Trust,08/08/18,NURSE - BAND 5 - AGENCY,North West ICS,HCL NURSING,MAN28239,976.32
Department of Health,Leicestershire Partnership NHS Trust,08/08/18,NURSE - BAND 5 - AGENCY,Rutland Ward Nursing,HCL NURSING,MAN28239,386.06
Department of Health,Leicestershire Partnership NHS Trust,08/08/18,NURSE - BAND 5 - AGENCY,South East ICS,HCL NURSING,MAN28239,3064.52
Department of Health,Leicestershire Partnership NHS Trust,08/08/18,NURSE - BAND 5 - AGENCY,South West ICS,HCL NURSING,MAN28239,888.83
Department of Health,Leicestershire Partnership NHS Trust,08/08/18,NURSE - BAND 2 - AGENCY,St Lukes Stroke Ward,HCL NURSING,MAN28239,647.11
Department of Health,Leicestershire Partnership NHS Trust,08/08/18,NURSE - BAND 5 - AGENCY,St Lukes Ward 3,HCL NURSING,MAN28239,2888.68
Department of Health,Leicestershire Partnership NHS Trust,08/08/18,NURSE - BAND 2 - AGENCY,Welford Ward,HCL NURSING,MAN28239,853.44
Department of Health,Leicestershire Partnership NHS Trust,08/08/18,NURSE - BAND 3 - AGENCY,West Planned Care  - Charnwood Hub,HCL NURSING,MAN28239,480.30
Department of Health,Leicestershire Partnership NHS Trust,08/08/18,NURSE - BAND 5 - AGENCY,West Planned Care  - Charnwood Hub,HCL NURSING,MAN28239,2997.50
Department of Health,Leicestershire Partnership NHS Trust,08/08/18,NURSE - BAND 2 - AGENCY,Beechwood Ward,HCL NURSING,MAN28275,328.12
Department of Health,Leicestershire Partnership NHS Trust,08/08/18,Nurse - Band 6 -Agency,City East CMHT MHSOP,HCL NURSING,MAN28275,1046.16
Department of Health,Leicestershire Partnership NHS Trust,08/08/18,NURSE - BAND 5 - AGENCY,City ICS,HCL NURSING,MAN28275,1987.60
Department of Health,Leicestershire Partnership NHS Trust,08/08/18,NURSE - BAND 5 - AGENCY,City Planned Care - East,HCL NURSING,MAN28275,3676.79
Department of Health,Leicestershire Partnership NHS Trust,08/08/18,NURSE - BAND 5 - AGENCY,City Planned Care - West,HCL NURSING,MAN28275,2567.77
Department of Health,Leicestershire Partnership NHS Trust,08/08/18,Nurse - Band 6 -Agency,City West CMHT MHSOP,HCL NURSING,MAN28275,1069.88
Department of Health,Leicestershire Partnership NHS Trust,08/08/18,NURSE - BAND 2 - AGENCY,Clarendon Ward,HCL NURSING,MAN28275,1325.82
Department of Health,Leicestershire Partnership NHS Trust,08/08/18,NURSE - BAND 2 - AGENCY,Coalville Snibston Ward,HCL NURSING,MAN28275,834.90
Department of Health,Leicestershire Partnership NHS Trust,08/08/18,NURSE - BAND 2 - AGENCY,Coleman Ward,HCL NURSING,MAN28275,258.82
Department of Health,Leicestershire Partnership NHS Trust,08/08/18,NURSE - BAND 2 - AGENCY,Dalgliesh Ward,HCL NURSING,MAN28275,180.21
Department of Health,Leicestershire Partnership NHS Trust,08/08/18,NURSE - BAND 5 - AGENCY,"East Planned Care - Melton,Syston,Rutland",HCL NURSING,MAN28275,1016.51
Department of Health,Leicestershire Partnership NHS Trust,08/08/18,NURSE - BAND 3 - AGENCY,"East Planned Care - Oadby,Wigston & Harborough",HCL NURSING,MAN28275,685.28
Department of Health,Leicestershire Partnership NHS Trust,08/08/18,NURSE - BAND 5 - AGENCY,Evening Service,HCL NURSING,MAN28275,1045.64
Department of Health,Leicestershire Partnership NHS Trust,08/08/18,NURSE - BAND 5 - AGENCY,Fielding Palmer Nursing,HCL NURSING,MAN28275,791.43
Department of Health,Leicestershire Partnership NHS Trust,08/08/18,NURSE - BAND 2 - AGENCY,Gwendolen Ward,HCL NURSING,MAN28275,1588.18
Department of Health,Leicestershire Partnership NHS Trust,08/08/18,NURSE - BAND 2 - AGENCY,H&B Comm Hosp East Ward,HCL NURSING,MAN28275,1277.13
Department of Health,Leicestershire Partnership NHS Trust,08/08/18,NURSE - BAND 5 - AGENCY,H&B Comm Hosp East Ward,HCL NURSING,MAN28275,1775.90
Department of Health,Leicestershire Partnership NHS Trust,08/08/18,NURSE - BAND 2 - AGENCY,H&B Comm Hosp North Ward,HCL NURSING,MAN28275,2512.59
Department of Health,Leicestershire Partnership NHS Trust,08/08/18,NURSE - BAND 5 - AGENCY,H&B Comm Hosp North Ward,HCL NURSING,MAN28275,419.12
Department of Health,Leicestershire Partnership NHS Trust,08/08/18,NURSE - BAND 2 - AGENCY,Kirby Ward,HCL NURSING,MAN28275,422.28
Department of Health,Leicestershire Partnership NHS Trust,08/08/18,NURSE - BAND 2 - AGENCY,Lough Swithland Ward,HCL NURSING,MAN28275,552.94
Department of Health,Leicestershire Partnership NHS Trust,08/08/18,NURSE - BAND 5 - AGENCY,Lough Swithland Ward,HCL NURSING,MAN28275,386.06
Department of Health,Leicestershire Partnership NHS Trust,08/08/18,NURSE - BAND 5 - AGENCY,North West ICS,HCL NURSING,MAN28275,1853.85
Department of Health,Leicestershire Partnership NHS Trust,08/08/18,NURSE - BAND 2 - AGENCY,Rutland Ward Nursing,HCL NURSING,MAN28275,239.57
Department of Health,Leicestershire Partnership NHS Trust,08/08/18,NURSE - BAND 5 - AGENCY,Rutland Ward Nursing,HCL NURSING,MAN28275,1598.20
Department of Health,Leicestershire Partnership NHS Trust,08/08/18,NURSE - BAND 5 - AGENCY,South East ICS,HCL NURSING,MAN28275,4951.49
Department of Health,Leicestershire Partnership NHS Trust,08/08/18,NURSE - BAND 5 - AGENCY,South West ICS,HCL NURSING,MAN28275,605.62
Department of Health,Leicestershire Partnership NHS Trust,08/08/18,NURSE - BAND 2 - AGENCY,St Lukes Stroke Ward,HCL NURSING,MAN28275,339.14
Department of Health,Leicestershire Partnership NHS Trust,08/08/18,NURSE - BAND 5 - AGENCY,St Lukes Stroke Ward,HCL NURSING,MAN28275,1931.29
Department of Health,Leicestershire Partnership NHS Trust,08/08/18,NURSE - BAND 5 - AGENCY,St Lukes Ward 3,HCL NURSING,MAN28275,1564.43
Department of Health,Leicestershire Partnership NHS Trust,08/08/18,NURSE - BAND 2 - AGENCY,Welford Ward,HCL NURSING,MAN28275,144.97
Department of Health,Leicestershire Partnership NHS Trust,08/08/18,NURSE - BAND 3 - AGENCY,West Planned Care  - Charnwood Hub,HCL NURSING,MAN28275,633.94
Department of Health,Leicestershire Partnership NHS Trust,08/08/18,NURSE - BAND 5 - AGENCY,West Planned Care  - Charnwood Hub,HCL NURSING,MAN28275,1164.22
Department of Health,Leicestershire Partnership NHS Trust,08/08/18,Landline Telephone Rental / Calls,"Beaumont Leys Health Centre (P94, LPT)",VIRGIN MEDIA BUSINESS,853083001/004/0718,495.52
Department of Health,Leicestershire Partnership NHS Trust,08/08/18,Landline Telephone Rental / Calls,Belgrave Health Centre (CHP),VIRGIN MEDIA BUSINESS,853083001/004/0718,392.18
Department of Health,Leicestershire Partnership NHS Trust,08/08/18,Landline Telephone Rental / Calls,"Bennion Centre (including Forest Grange Day Unit) (P8, LPT)",VIRGIN MEDIA BUSINESS,853083001/004/0718,7.80
Department of Health,Leicestershire Partnership NHS Trust,08/08/18,Landline Telephone Rental / Calls,"Bradgate Unit (including Glenvale day Unit) (P7, LPT)",VIRGIN MEDIA BUSINESS,853083001/004/0718,7401.49
Department of Health,Leicestershire Partnership NHS Trust,08/08/18,Landline Telephone Rental / Calls,Braunstone Health and Social Care Centre (Part) (PROPCO),VIRGIN MEDIA BUSINESS,853083001/004/0718,1478.56
Department of Health,Leicestershire Partnership NHS Trust,08/08/18,Landline Telephone Rental / Calls,Bridge Park Plaza - First Floor (LPT),VIRGIN MEDIA BUSINESS,853083001/004/0718,4133.18
Department of Health,Leicestershire Partnership NHS Trust,08/08/18,Landline Telephone Rental / Calls,"Coalville Community Hospital (P138, LPT)",VIRGIN MEDIA BUSINESS,853083001/004/0718,1697.89
Department of Health,Leicestershire Partnership NHS Trust,08/08/18,Landline Telephone Rental / Calls,"Coalville Health Centre (P121, LPT)",VIRGIN MEDIA BUSINESS,853083001/004/0718,410.03
Department of Health,Leicestershire Partnership NHS Trust,08/08/18,Landline Telephone Rental / Calls,County Hall,VIRGIN MEDIA BUSINESS,853083001/004/0718,1431.44
Department of Health,Leicestershire Partnership NHS Trust,08/08/18,Landline Telephone Rental / Calls,Estates & Facilities Central,VIRGIN MEDIA BUSINESS,853083001/004/0718,4068.77
Department of Health,Leicestershire Partnership NHS Trust,08/08/18,Landline Telephone Rental / Calls,"Evington Centre (P6, LPT)",VIRGIN MEDIA BUSINESS,853083001/004/0718,1724.05
Department of Health,Leicestershire Partnership NHS Trust,08/08/18,Landline Telephone Rental / Calls,HIS,VIRGIN MEDIA BUSINESS,853083001/004/0718,2631.58
Department of Health,Leicestershire Partnership NHS Trust,08/08/18,Landline Telephone Rental / Calls,"Hawthorne Centre - Coalville (P14, LPT)",VIRGIN MEDIA BUSINESS,853083001/004/0718,642.13
Department of Health,Leicestershire Partnership NHS Trust,08/08/18,Landline Telephone Rental / Calls,Hinckley & District Hospital (PROPCO),VIRGIN MEDIA BUSINESS,853083001/004/0718,1476.66
Department of Health,Leicestershire Partnership NHS Trust,08/08/18,Landline Telephone Rental / Calls,"Hinckley and Bosworth Community Hospital (Sunnyside) (P133, LPT)",VIRGIN MEDIA BUSINESS,853083001/004/0718,1148.97
Department of Health,Leicestershire Partnership NHS Trust,08/08/18,Landline Telephone Rental / Calls,Hood Park Leisure Centre Clinic,VIRGIN MEDIA BUSINESS,853083001/004/0718,58.72
Department of Health,Leicestershire Partnership NHS Trust,08/08/18,Landline Telephone Rental / Calls,"Hynca Lodge (P33, LPT)",VIRGIN MEDIA BUSINESS,853083001/004/0718,403.78
Department of Health,Leicestershire Partnership NHS Trust,08/08/18,Landline Telephone Rental / Calls,"Legion House, Ashby",VIRGIN MEDIA BUSINESS,853083001/004/0718,62.75
Department of Health,Leicestershire Partnership NHS Trust,08/08/18,Landline Telephone Rental / Calls,Loughborough Health Centre (PROPCO),VIRGIN MEDIA BUSINESS,853083001/004/0718,8.93
Department of Health,Leicestershire Partnership NHS Trust,08/08/18,Landline Telephone Rental / Calls,"Loughborough Hospital (P136, LPT)",VIRGIN MEDIA BUSINESS,853083001/004/0718,4482.58
Department of Health,Leicestershire Partnership NHS Trust,08/08/18,Landline Telephone Rental / Calls,Mawson House (LPT),VIRGIN MEDIA BUSINESS,853083001/004/0718,484.50
Department of Health,Leicestershire Partnership NHS Trust,08/08/18,Landline Telephone Rental / Calls,Melbourne Centre (Pt Grnd flr) (PROPCO),VIRGIN MEDIA BUSINESS,853083001/004/0718,6.50
Department of Health,Leicestershire Partnership NHS Trust,08/08/18,Landline Telephone Rental / Calls,Melton Mowbray Hospital (previously St. Mary's) (PROPCO),VIRGIN MEDIA BUSINESS,853083001/004/0718,2218.04
Department of Health,Leicestershire Partnership NHS Trust,08/08/18,Landline Telephone Rental / Calls,Merlyn Vaz Centre (CHP),VIRGIN MEDIA BUSINESS,853083001/004/0718,2023.54
Department of Health,Leicestershire Partnership NHS Trust,08/08/18,Landline Telephone Rental / Calls,"Mett Centre (P49, LPT)",VIRGIN MEDIA BUSINESS,853083001/004/0718,97.15
Department of Health,Leicestershire Partnership NHS Trust,08/08/18,Landline Telephone Rental / Calls,NSPCC Training Cente,VIRGIN MEDIA BUSINESS,853083001/004/0718,171.97
Department of Health,Leicestershire Partnership NHS Trust,08/08/18,Landline Telephone Rental / Calls,New Parks Health Centre (PROPCO),VIRGIN MEDIA BUSINESS,853083001/004/0718,2138.67
Department of Health,Leicestershire Partnership NHS Trust,08/08/18,Landline Telephone Rental / Calls,"OSL House (P54, LPT)",VIRGIN MEDIA BUSINESS,853083001/004/0718,3580.98
Department of Health,Leicestershire Partnership NHS Trust,08/08/18,Landline Telephone Rental / Calls,"Orchard Resource Centre (P15, LPT)",VIRGIN MEDIA BUSINESS,853083001/004/0718,541.57
Department of Health,Leicestershire Partnership NHS Trust,08/08/18,Landline Telephone Rental / Calls,Pasley Road Health Centre (PROPCO),VIRGIN MEDIA BUSINESS,853083001/004/0718,264.82
Department of Health,Leicestershire Partnership NHS Trust,08/08/18,Landline Telephone Rental / Calls,"Prince Philip House (P96, LPT)",VIRGIN MEDIA BUSINESS,853083001/004/0718,2173.02
Department of Health,Leicestershire Partnership NHS Trust,08/08/18,Landline Telephone Rental / Calls,Rushey Mead Health Centre (PROPCO),VIRGIN MEDIA BUSINESS,853083001/004/0718,257.93
Department of Health,Leicestershire Partnership NHS Trust,08/08/18,Landline Telephone Rental / Calls,"Rutland Memorial Hospital (P134, LPT)",VIRGIN MEDIA BUSINESS,853083001/004/0718,133.80
Department of Health,Leicestershire Partnership NHS Trust,08/08/18,Landline Telephone Rental / Calls,"Shepshed Health Centre (P123, LPT)",VIRGIN MEDIA BUSINESS,853083001/004/0718,137.59
Department of Health,Leicestershire Partnership NHS Trust,08/08/18,Landline Telephone Rental / Calls,"Springfield Road Health Centre (P92, LPT)",VIRGIN MEDIA BUSINESS,853083001/004/0718,466.66
Department of Health,Leicestershire Partnership NHS Trust,08/08/18,Landline Telephone Rental / Calls,St Johns House (1st Floor) (PROPCO),VIRGIN MEDIA BUSINESS,853083001/004/0718,1535.12
Department of Health,Leicestershire Partnership NHS Trust,08/08/18,Landline Telephone Rental / Calls,St Peters Primary Care Centre (CHP),VIRGIN MEDIA BUSINESS,853083001/004/0718,2766.90
Department of Health,Leicestershire Partnership NHS Trust,08/08/18,Landline Telephone Rental / Calls,"Stewart House (P61, LPT)",VIRGIN MEDIA BUSINESS,853083001/004/0718,49.80
Department of Health,Leicestershire Partnership NHS Trust,08/08/18,Landline Telephone Rental / Calls,"Swithland House - London Road 352 (P44, LPT)",VIRGIN MEDIA BUSINESS,853083001/004/0718,397.25
Department of Health,Leicestershire Partnership NHS Trust,08/08/18,Landline Telephone Rental / Calls,"The Cedars (P19, LPT)",VIRGIN MEDIA BUSINESS,853083001/004/0718,598.61
Department of Health,Leicestershire Partnership NHS Trust,08/08/18,Landline Telephone Rental / Calls,"The Willows - Cordelia Close (P22, LPT)",VIRGIN MEDIA BUSINESS,853083001/004/0718,576.88
Department of Health,Leicestershire Partnership NHS Trust,08/08/18,Landline Telephone Rental / Calls,Uppingham Road Health Centre (PROPCO),VIRGIN MEDIA BUSINESS,853083001/004/0718,249.12
Department of Health,Leicestershire Partnership NHS Trust,08/08/18,Landline Telephone Rental / Calls,"Valentine Centre (P3, LPT)",VIRGIN MEDIA BUSINESS,853083001/004/0718,1789.45
Department of Health,Leicestershire Partnership NHS Trust,08/08/18,Landline Telephone Rental / Calls,Warren Park Way 25 (PROPCO),VIRGIN MEDIA BUSINESS,853083001/004/0718,987.35
Department of Health,Leicestershire Partnership NHS Trust,08/08/18,Landline Telephone Rental / Calls,"Westcotes Group -Westcotes House (P78, LPT)",VIRGIN MEDIA BUSINESS,853083001/004/0718,1392.24
Department of Health,Leicestershire Partnership NHS Trust,08/08/18,Landline Telephone Rental / Calls,Westcotes Health Centre (CHP),VIRGIN MEDIA BUSINESS,853083001/004/0718,756.15
Department of Health,Leicestershire Partnership NHS Trust,08/08/18,Landline Telephone Rental / Calls,"Winstanley Drive Health Centre (P8, LPT)",VIRGIN MEDIA BUSINESS,853083001/004/0718,454.33
Department of Health,Leicestershire Partnership NHS Trust,13/08/18,Unitary Payment,"The Agnes Unit (AKA Assessment and Treatment Centre) (P85, LPT)",ARDEN PARTNERSHIP (LEICESTER),SI0011,114431.10
Department of Health,Leicestershire Partnership NHS Trust,13/08/18,Crs_NHS_LT1y -Resus Inventory Supplied.,Balance Sheet Collection,NHS SUPPLY CHAIN (ST1450),1019091732,39326.38
Department of Health,Leicestershire Partnership NHS Trust,13/08/18,CHP Estates Management,Belgrave Health Centre (CHP),COMM HLTH PARTNERSHIPS LTD,0060078391,10849.49
Department of Health,Leicestershire Partnership NHS Trust,13/08/18,CHP Estates Management,Merlyn Vaz Centre (CHP),COMM HLTH PARTNERSHIPS LTD,0060078391,73148.77
Department of Health,Leicestershire Partnership NHS Trust,13/08/18,CHP Estates Management,Westcotes Health Centre (CHP),COMM HLTH PARTNERSHIPS LTD,0060078391,14223.71
Department of Health,Leicestershire Partnership NHS Trust,13/08/18,Contract : Accomodation,Out of County Income - Inpateints Project,TURNING POINT,SI-TPS-00019294,48353.83
Department of Health,Leicestershire Partnership NHS Trust,14/08/18,NURSE - BAND 5 - AGENCY,AGNES UNIT POD 1,HCL NURSING,MAN28274,346.54
Department of Health,Leicestershire Partnership NHS Trust,14/08/18,Nurse - Band 6 -Agency,Adult City East CMHT - Merlyn Vaz,HCL NURSING,MAN28274,1736.96
Department of Health,Leicestershire Partnership NHS Trust,14/08/18,Nurse - Band 6 -Agency,Adult County Charnwood CMHT - Loughborough Base,HCL NURSING,MAN28274,1137.56
Department of Health,Leicestershire Partnership NHS Trust,14/08/18,Nurse - Band 6 -Agency,Adult County North West Leicestershire CMHT,HCL NURSING,MAN28274,427.95
Department of Health,Leicestershire Partnership NHS Trust,14/08/18,NURSE - BAND 5 - AGENCY,Ashby Ward (Bradgate Unit),HCL NURSING,MAN28274,346.72
Department of Health,Leicestershire Partnership NHS Trust,14/08/18,NURSE - BAND 5 - AGENCY,Aston Ward (Bradgate Unit),HCL NURSING,MAN28274,2757.90
Department of Health,Leicestershire Partnership NHS Trust,14/08/18,NURSE - BAND 2 - AGENCY,Beaumont Ward - Bradgate Unit,HCL NURSING,MAN28274,689.16
Department of Health,Leicestershire Partnership NHS Trust,14/08/18,NURSE - BAND 2 - AGENCY,Belvoir Psychiatric Intensive Care Unit,HCL NURSING,MAN28274,1532.84
Department of Health,Leicestershire Partnership NHS Trust,14/08/18,NURSE - BAND 5 - AGENCY,Belvoir Psychiatric Intensive Care Unit,HCL NURSING,MAN28274,1699.78
Department of Health,Leicestershire Partnership NHS Trust,14/08/18,NURSE - BAND 2 - AGENCY,Bosworth Ward - Bradgate Unit,HCL NURSING,MAN28274,168.41
Department of Health,Leicestershire Partnership NHS Trust,14/08/18,NURSE - BAND 5 - AGENCY,Bosworth Ward - Bradgate Unit,HCL NURSING,MAN28274,329.81
Department of Health,Leicestershire Partnership NHS Trust,14/08/18,Nurse - Band 6 -Agency,Crisis Resolution,HCL NURSING,MAN28274,5335.01
Department of Health,Leicestershire Partnership NHS Trust,14/08/18,Nurse - Band 6 -Agency,Deliberate Self Harm,HCL NURSING,MAN28274,1031.59
Department of Health,Leicestershire Partnership NHS Trust,14/08/18,NURSE - BAND 2 - AGENCY,Griffin Ward (HPC),HCL NURSING,MAN28274,296.27
Department of Health,Leicestershire Partnership NHS Trust,14/08/18,NURSE - BAND 5 - AGENCY,Griffin Ward (HPC),HCL NURSING,MAN28274,1499.44
Department of Health,Leicestershire Partnership NHS Trust,14/08/18,NURSE - BAND 2 - AGENCY,Heather Ward,HCL NURSING,MAN28274,258.67
Department of Health,Leicestershire Partnership NHS Trust,14/08/18,NURSE - BAND 5 - AGENCY,Heather Ward,HCL NURSING,MAN28274,2062.24
Department of Health,Leicestershire Partnership NHS Trust,14/08/18,NURSE - BAND 2 - AGENCY,Maple Ward,HCL NURSING,MAN28274,144.78
Department of Health,Leicestershire Partnership NHS Trust,14/08/18,NURSE - BAND 2 - AGENCY,Thornton Ward - Bradgate Unit,HCL NURSING,MAN28274,336.82
Department of Health,Leicestershire Partnership NHS Trust,14/08/18,NURSE - BAND 5 - AGENCY,Thornton Ward - Bradgate Unit,HCL NURSING,MAN28274,596.56
Department of Health,Leicestershire Partnership NHS Trust,14/08/18,NURSE - BAND 2 - AGENCY,Watermead Ward (Bradgate Unit),HCL NURSING,MAN28274,453.44
Department of Health,Leicestershire Partnership NHS Trust,14/08/18,NURSE - BAND 2 - AGENCY,Acacia (Willows),HCL NURSING,MAN28330,168.41
Department of Health,Leicestershire Partnership NHS Trust,14/08/18,Nurse - Band 6 -Agency,Adult City East CMHT - Merlyn Vaz,HCL NURSING,MAN28330,836.93
Department of Health,Leicestershire Partnership NHS Trust,14/08/18,Nurse - Band 6 -Agency,Adult County North West Leicestershire CMHT,HCL NURSING,MAN28330,213.98
Department of Health,Leicestershire Partnership NHS Trust,14/08/18,NURSE - BAND 2 - AGENCY,Aston Ward (Bradgate Unit),HCL NURSING,MAN28330,156.71
Department of Health,Leicestershire Partnership NHS Trust,14/08/18,NURSE - BAND 5 - AGENCY,Aston Ward (Bradgate Unit),HCL NURSING,MAN28330,2418.00
Department of Health,Leicestershire Partnership NHS Trust,14/08/18,NURSE - BAND 5 - AGENCY,Beaumont Ward - Bradgate Unit,HCL NURSING,MAN28330,1900.54
Department of Health,Leicestershire Partnership NHS Trust,14/08/18,NURSE - BAND 2 - AGENCY,Belvoir Psychiatric Intensive Care Unit,HCL NURSING,MAN28330,897.97
Department of Health,Leicestershire Partnership NHS Trust,14/08/18,NURSE - BAND 5 - AGENCY,Belvoir Psychiatric Intensive Care Unit,HCL NURSING,MAN28330,989.44
Department of Health,Leicestershire Partnership NHS Trust,14/08/18,NURSE - BAND 2 - AGENCY,Bosworth Ward - Bradgate Unit,HCL NURSING,MAN28330,178.74
Department of Health,Leicestershire Partnership NHS Trust,14/08/18,NURSE - BAND 5 - AGENCY,Bosworth Ward - Bradgate Unit,HCL NURSING,MAN28330,596.56
Department of Health,Leicestershire Partnership NHS Trust,14/08/18,Nurse - Band 6 -Agency,Crisis Resolution,HCL NURSING,MAN28330,4323.93
Department of Health,Leicestershire Partnership NHS Trust,14/08/18,Nurse - Band 6 -Agency,Deliberate Self Harm,HCL NURSING,MAN28330,2573.02
Department of Health,Leicestershire Partnership NHS Trust,14/08/18,NURSE - BAND 2 - AGENCY,Griffin Ward (HPC),HCL NURSING,MAN28330,327.76
Department of Health,Leicestershire Partnership NHS Trust,14/08/18,NURSE - BAND 5 - AGENCY,Griffin Ward (HPC),HCL NURSING,MAN28330,1823.34
Department of Health,Leicestershire Partnership NHS Trust,14/08/18,NURSE - BAND 2 - AGENCY,Heather Ward,HCL NURSING,MAN28330,360.40
Department of Health,Leicestershire Partnership NHS Trust,14/08/18,NURSE - BAND 5 - AGENCY,Heather Ward,HCL NURSING,MAN28330,1933.17
Department of Health,Leicestershire Partnership NHS Trust,14/08/18,NURSE - BAND 5 - AGENCY,Mill Lodge,HCL NURSING,MAN28330,1142.78
Department of Health,Leicestershire Partnership NHS Trust,14/08/18,NURSE - BAND 2 - AGENCY,Phoenix Ward (HPC),HCL NURSING,MAN28330,256.25
Department of Health,Leicestershire Partnership NHS Trust,14/08/18,NURSE - BAND 2 - AGENCY,Sycamore (Willows),HCL NURSING,MAN28330,168.41
Department of Health,Leicestershire Partnership NHS Trust,14/08/18,NURSE - BAND 5 - AGENCY,The Grange,HCL NURSING,MAN28330,342.08
Department of Health,Leicestershire Partnership NHS Trust,14/08/18,NURSE - BAND 2 - AGENCY,Thornton Ward - Bradgate Unit,HCL NURSING,MAN28330,168.41
Department of Health,Leicestershire Partnership NHS Trust,14/08/18,NURSE - BAND 5 - AGENCY,Thornton Ward - Bradgate Unit,HCL NURSING,MAN28330,596.56
Department of Health,Leicestershire Partnership NHS Trust,14/08/18,Payroll Deductions - Kiddi Vouchers,Balance Sheet Collection,WIDER PLAN LTD,4338942,44937.84
Department of Health,Leicestershire Partnership NHS Trust,16/08/18,Insurance Costs,Chief Executives Office,NHS LITIGATION AUTHORITY,SICX/00133256,85763.50
Department of Health,Leicestershire Partnership NHS Trust,16/08/18,NURSE - BAND 5 - AGENCY,Access Bed Management Team,HCL NURSING,MAN28238,659.63
Department of Health,Leicestershire Partnership NHS Trust,16/08/18,Nurse - Band 6 -Agency,Adult City East CMHT - Merlyn Vaz,HCL NURSING,MAN28238,2540.20
Department of Health,Leicestershire Partnership NHS Trust,16/08/18,Nurse - Band 6 -Agency,Adult County Charnwood CMHT - Loughborough Base,HCL NURSING,MAN28238,1046.16
Department of Health,Leicestershire Partnership NHS Trust,16/08/18,Nurse - Band 6 -Agency,Adult County North West Leicestershire CMHT,HCL NURSING,MAN28238,641.93
Department of Health,Leicestershire Partnership NHS Trust,16/08/18,NURSE - BAND 5 - AGENCY,Agnes Unit Management,HCL NURSING,MAN28238,927.54
Department of Health,Leicestershire Partnership NHS Trust,16/08/18,NURSE - BAND 2 - AGENCY,Aston Ward (Bradgate Unit),HCL NURSING,MAN28238,407.92
Department of Health,Leicestershire Partnership NHS Trust,16/08/18,NURSE - BAND 5 - AGENCY,Aston Ward (Bradgate Unit),HCL NURSING,MAN28238,3223.99
Department of Health,Leicestershire Partnership NHS Trust,16/08/18,NURSE - BAND 5 - AGENCY,Beaumont Ward - Bradgate Unit,HCL NURSING,MAN28238,1008.62
Department of Health,Leicestershire Partnership NHS Trust,16/08/18,NURSE - BAND 2 - AGENCY,Belvoir Psychiatric Intensive Care Unit,HCL NURSING,MAN28238,325.01
Department of Health,Leicestershire Partnership NHS Trust,16/08/18,NURSE - BAND 5 - AGENCY,Belvoir Psychiatric Intensive Care Unit,HCL NURSING,MAN28238,1030.48
Department of Health,Leicestershire Partnership NHS Trust,16/08/18,NURSE - BAND 2 - AGENCY,Bosworth Ward - Bradgate Unit,HCL NURSING,MAN28238,274.19
Department of Health,Leicestershire Partnership NHS Trust,16/08/18,NURSE - BAND 5 - AGENCY,Bosworth Ward - Bradgate Unit,HCL NURSING,MAN28238,969.63
Department of Health,Leicestershire Partnership NHS Trust,16/08/18,Nurse - Band 6 -Agency,Crisis Resolution,HCL NURSING,MAN28238,4195.04
Department of Health,Leicestershire Partnership NHS Trust,16/08/18,Nurse - Band 6 -Agency,Deliberate Self Harm,HCL NURSING,MAN28238,3119.82
Department of Health,Leicestershire Partnership NHS Trust,16/08/18,NURSE - BAND 2 - AGENCY,Griffin Ward (HPC),HCL NURSING,MAN28238,284.65
Department of Health,Leicestershire Partnership NHS Trust,16/08/18,NURSE - BAND 5 - AGENCY,Griffin Ward (HPC),HCL NURSING,MAN28238,2190.15
Department of Health,Leicestershire Partnership NHS Trust,16/08/18,NURSE - BAND 2 - AGENCY,Heather Ward,HCL NURSING,MAN28238,168.41
Department of Health,Leicestershire Partnership NHS Trust,16/08/18,NURSE - BAND 5 - AGENCY,Heather Ward,HCL NURSING,MAN28238,2654.81
Department of Health,Leicestershire Partnership NHS Trust,16/08/18,NURSE - BAND 2 - AGENCY,Phoenix Ward (HPC),HCL NURSING,MAN28238,379.67
Department of Health,Leicestershire Partnership NHS Trust,16/08/18,NURSE - BAND 2 - AGENCY,Place Of Safety Assessment Unit,HCL NURSING,MAN28238,195.24
Department of Health,Leicestershire Partnership NHS Trust,16/08/18,NURSE - BAND 5 - AGENCY,Place Of Safety Assessment Unit,HCL NURSING,MAN28238,246.77
Department of Health,Leicestershire Partnership NHS Trust,16/08/18,NURSE - BAND 5 - AGENCY,Thornton Ward - Bradgate Unit,HCL NURSING,MAN28238,1100.31
Department of Health,Leicestershire Partnership NHS Trust,16/08/18,NURSE - BAND 5 - AGENCY,Watermead Ward (Bradgate Unit),HCL NURSING,MAN28238,659.63
Department of Health,Leicestershire Partnership NHS Trust,16/08/18,NURSE - BAND 2 - AGENCY,Beechwood Ward,HCL NURSING,MAN28331,211.93
Department of Health,Leicestershire Partnership NHS Trust,16/08/18,Nurse - Band 6 -Agency,City East CMHT MHSOP,HCL NURSING,MAN28331,836.93
Department of Health,Leicestershire Partnership NHS Trust,16/08/18,NURSE - BAND 5 - AGENCY,City ICS,HCL NURSING,MAN28331,1559.74
Department of Health,Leicestershire Partnership NHS Trust,16/08/18,NURSE - BAND 5 - AGENCY,City Planned Care - East,HCL NURSING,MAN28331,6443.18
Department of Health,Leicestershire Partnership NHS Trust,16/08/18,NURSE - BAND 5 - AGENCY,City Planned Care - West,HCL NURSING,MAN28331,2784.62
Department of Health,Leicestershire Partnership NHS Trust,16/08/18,NURSE - BAND 2 - AGENCY,Clarendon Ward,HCL NURSING,MAN28331,1102.71
Department of Health,Leicestershire Partnership NHS Trust,16/08/18,NURSE - BAND 2 - AGENCY,Coalville Snibston Ward,HCL NURSING,MAN28331,189.57
Department of Health,Leicestershire Partnership NHS Trust,16/08/18,NURSE - BAND 2 - AGENCY,Coleman Ward,HCL NURSING,MAN28331,398.37
Department of Health,Leicestershire Partnership NHS Trust,16/08/18,NURSE - BAND 2 - AGENCY,Dalgliesh Ward,HCL NURSING,MAN28331,422.57
Department of Health,Leicestershire Partnership NHS Trust,16/08/18,NURSE - BAND 5 - AGENCY,Dalgliesh Ward,HCL NURSING,MAN28331,1604.77
Department of Health,Leicestershire Partnership NHS Trust,16/08/18,NURSE - BAND 3 - AGENCY,East Planned Care - Blaby/Lutterworth,HCL NURSING,MAN28331,1730.20
Department of Health,Leicestershire Partnership NHS Trust,16/08/18,NURSE - BAND 5 - AGENCY,"East Planned Care - Melton,Syston,Rutland",HCL NURSING,MAN28331,1094.42
Department of Health,Leicestershire Partnership NHS Trust,16/08/18,NURSE - BAND 3 - AGENCY,"East Planned Care - Oadby,Wigston & Harborough",HCL NURSING,MAN28331,468.29
Department of Health,Leicestershire Partnership NHS Trust,16/08/18,NURSE - BAND 5 - AGENCY,"East Planned Care - Oadby,Wigston & Harborough",HCL NURSING,MAN28331,26.52
Department of Health,Leicestershire Partnership NHS Trust,16/08/18,NURSE - BAND 5 - AGENCY,Evening Service,HCL NURSING,MAN28331,1243.93
Department of Health,Leicestershire Partnership NHS Trust,16/08/18,NURSE - BAND 2 - AGENCY,Fielding Palmer Nursing,HCL NURSING,MAN28331,261.16
Department of Health,Leicestershire Partnership NHS Trust,16/08/18,NURSE - BAND 5 - AGENCY,Fielding Palmer Nursing,HCL NURSING,MAN28331,4918.88
Department of Health,Leicestershire Partnership NHS Trust,16/08/18,NURSE - BAND 2 - AGENCY,Gwendolen Ward,HCL NURSING,MAN28331,634.00
Department of Health,Leicestershire Partnership NHS Trust,16/08/18,NURSE - BAND 2 - AGENCY,H&B Comm Hosp East Ward,HCL NURSING,MAN28331,435.53
Department of Health,Leicestershire Partnership NHS Trust,16/08/18,NURSE - BAND 5 - AGENCY,H&B Comm Hosp East Ward,HCL NURSING,MAN28331,1198.82
Department of Health,Leicestershire Partnership NHS Trust,16/08/18,NURSE - BAND 2 - AGENCY,H&B Comm Hosp North Ward,HCL NURSING,MAN28331,3379.36
Department of Health,Leicestershire Partnership NHS Trust,16/08/18,NURSE - BAND 2 - AGENCY,Kirby Ward,HCL NURSING,MAN28331,443.63
Department of Health,Leicestershire Partnership NHS Trust,16/08/18,NURSE - BAND 5 - AGENCY,Kirby Ward,HCL NURSING,MAN28331,654.27
Department of Health,Leicestershire Partnership NHS Trust,16/08/18,NURSE - BAND 2 - AGENCY,Lough Swithland Ward,HCL NURSING,MAN28331,1155.65
Department of Health,Leicestershire Partnership NHS Trust,16/08/18,Nurse - Band 6 -Agency,MHSOP Integrated Care Team,HCL NURSING,MAN28331,1883.09
Department of Health,Leicestershire Partnership NHS Trust,16/08/18,NURSE - BAND 5 - AGENCY,North West ICS,HCL NURSING,MAN28331,1683.64
Department of Health,Leicestershire Partnership NHS Trust,16/08/18,NURSE - BAND 5 - AGENCY,Rutland Ward Nursing,HCL NURSING,MAN28331,1797.46
Department of Health,Leicestershire Partnership NHS Trust,16/08/18,NURSE - BAND 5 - AGENCY,South East ICS,HCL NURSING,MAN28331,4101.80
Department of Health,Leicestershire Partnership NHS Trust,16/08/18,NURSE - BAND 5 - AGENCY,South West ICS,HCL NURSING,MAN28331,628.17
Department of Health,Leicestershire Partnership NHS Trust,16/08/18,NURSE - BAND 2 - AGENCY,St Lukes Stroke Ward,HCL NURSING,MAN28331,726.92
Department of Health,Leicestershire Partnership NHS Trust,16/08/18,NURSE - BAND 5 - AGENCY,St Lukes Stroke Ward,HCL NURSING,MAN28331,393.35
Department of Health,Leicestershire Partnership NHS Trust,16/08/18,NURSE - BAND 5 - AGENCY,St Lukes Ward 3,HCL NURSING,MAN28331,2278.36
Department of Health,Leicestershire Partnership NHS Trust,16/08/18,NURSE - BAND 2 - AGENCY,Welford Ward,HCL NURSING,MAN28331,300.83
Department of Health,Leicestershire Partnership NHS Trust,16/08/18,NURSE - BAND 5 - AGENCY,Welford Ward,HCL NURSING,MAN28331,302.58
Department of Health,Leicestershire Partnership NHS Trust,16/08/18,NURSE - BAND 3 - AGENCY,West Planned Care  - Charnwood Hub,HCL NURSING,MAN28331,549.49
Department of Health,Leicestershire Partnership NHS Trust,16/08/18,NURSE - BAND 5 - AGENCY,West Planned Care  - Charnwood Hub,HCL NURSING,MAN28331,3166.87
Department of Health,Leicestershire Partnership NHS Trust,16/08/18,Nurse - Band 6 -Agency,Adult City East CMHT - Merlyn Vaz,HCL NURSING,MAN28196,1197.41
Department of Health,Leicestershire Partnership NHS Trust,16/08/18,Nurse - Band 6 -Agency,Adult County Charnwood CMHT - Loughborough Base,HCL NURSING,MAN28196,1883.09
Department of Health,Leicestershire Partnership NHS Trust,16/08/18,Nurse - Band 6 -Agency,Adult County North West Leicestershire CMHT,HCL NURSING,MAN28196,1308.68
Department of Health,Leicestershire Partnership NHS Trust,16/08/18,NURSE - BAND 5 - AGENCY,Agnes Unit Management,HCL NURSING,MAN28196,300.32
Department of Health,Leicestershire Partnership NHS Trust,16/08/18,NURSE - BAND 5 - AGENCY,Ashby Ward (Bradgate Unit),HCL NURSING,MAN28196,664.62
Department of Health,Leicestershire Partnership NHS Trust,16/08/18,NURSE - BAND 5 - AGENCY,Aston Ward (Bradgate Unit),HCL NURSING,MAN28196,2858.73
Department of Health,Leicestershire Partnership NHS Trust,16/08/18,NURSE - BAND 2 - AGENCY,Beaumont Ward - Bradgate Unit,HCL NURSING,MAN28196,190.22
Department of Health,Leicestershire Partnership NHS Trust,16/08/18,NURSE - BAND 5 - AGENCY,Beaumont Ward - Bradgate Unit,HCL NURSING,MAN28196,675.51
Department of Health,Leicestershire Partnership NHS Trust,16/08/18,NURSE - BAND 5 - AGENCY,Bosworth Ward - Bradgate Unit,HCL NURSING,MAN28196,1060.95
Department of Health,Leicestershire Partnership NHS Trust,16/08/18,Nurse - Band 6 -Agency,Crisis Resolution,HCL NURSING,MAN28196,5164.66
Department of Health,Leicestershire Partnership NHS Trust,16/08/18,Nurse - Band 6 -Agency,Deliberate Self Harm,HCL NURSING,MAN28196,4302.01
Department of Health,Leicestershire Partnership NHS Trust,16/08/18,NURSE - BAND 5 - AGENCY,Griffin Ward (HPC),HCL NURSING,MAN28196,2781.07
Department of Health,Leicestershire Partnership NHS Trust,16/08/18,NURSE - BAND 5 - AGENCY,Heather Ward,HCL NURSING,MAN28196,2111.81
Department of Health,Leicestershire Partnership NHS Trust,16/08/18,NURSE - BAND 5 - AGENCY,Mill Lodge,HCL NURSING,MAN28196,965.93
Department of Health,Leicestershire Partnership NHS Trust,16/08/18,NURSE - BAND 2 - AGENCY,Phoenix Ward (HPC),HCL NURSING,MAN28196,634.11
Department of Health,Leicestershire Partnership NHS Trust,16/08/18,NURSE - BAND 2 - AGENCY,Sycamore (Willows),HCL NURSING,MAN28196,264.35
Department of Health,Leicestershire Partnership NHS Trust,16/08/18,NURSE - BAND 2 - AGENCY,Thornton Ward - Bradgate Unit,HCL NURSING,MAN28196,198.29
Department of Health,Leicestershire Partnership NHS Trust,16/08/18,NURSE - BAND 5 - AGENCY,Thornton Ward - Bradgate Unit,HCL NURSING,MAN28196,259.30
Department of Health,Leicestershire Partnership NHS Trust,16/08/18,NURSE - BAND 2 - AGENCY,Watermead Ward (Bradgate Unit),HCL NURSING,MAN28196,415.58
Department of Health,Leicestershire Partnership NHS Trust,16/08/18,NURSE - BAND 5 - AGENCY,Watermead Ward (Bradgate Unit),HCL NURSING,MAN28196,726.86
Department of Health,Leicestershire Partnership NHS Trust,17/08/18,OCCUPATIONAL THERAPIST - AGENCY,Adult City West CMHT - BHSCC,MSI RECRUITMENT,MSIR030818,769.65
Department of Health,Leicestershire Partnership NHS Trust,17/08/18,PHYSIOTHERAPY - AGENCY,City Community Therapy,MSI RECRUITMENT,MSIR030818,2650.75
Department of Health,Leicestershire Partnership NHS Trust,17/08/18,PHYSIOTHERAPY - AGENCY,City ICS,MSI RECRUITMENT,MSIR030818,1191.54
Department of Health,Leicestershire Partnership NHS Trust,17/08/18,PHYSIOTHERAPY - AGENCY,Coalville Snibston Ward,MSI RECRUITMENT,MSIR030818,3482.34
Department of Health,Leicestershire Partnership NHS Trust,17/08/18,PODIATRIST - AGENCY,County Podiatry Service,MSI RECRUITMENT,MSIR030818,3473.90
Department of Health,Leicestershire Partnership NHS Trust,17/08/18,PHYSIOTHERAPY - AGENCY,East Community Therapy,MSI RECRUITMENT,MSIR030818,1292.16
Department of Health,Leicestershire Partnership NHS Trust,17/08/18,PHYSIOTHERAPY - AGENCY,H&B Comm Hosp East Ward,MSI RECRUITMENT,MSIR030818,1006.94
Department of Health,Leicestershire Partnership NHS Trust,17/08/18,PHYSIOTHERAPY - AGENCY,Learning Disabilities - Physiotherapy,MSI RECRUITMENT,MSIR030818,1304.66
Department of Health,Leicestershire Partnership NHS Trust,17/08/18,OCCUPATIONAL THERAPIST - AGENCY,MHSOP Community Therapy,MSI RECRUITMENT,MSIR030818,1006.94
Department of Health,Leicestershire Partnership NHS Trust,17/08/18,OCCUPATIONAL THERAPIST - AGENCY,MHSOP Inpatient Therapy - Evington,MSI RECRUITMENT,MSIR030818,987.44
Department of Health,Leicestershire Partnership NHS Trust,17/08/18,Professional & Technical Agency,Medical & Neuro Psychology Services,MSI RECRUITMENT,MSIR030818,3017.80
Department of Health,Leicestershire Partnership NHS Trust,17/08/18,PHYSIOTHERAPY - AGENCY,South Leics MSK Physiotherapy,MSI RECRUITMENT,MSIR030818,3324.41
Department of Health,Leicestershire Partnership NHS Trust,17/08/18,SALT - AGENCY,Speech & Language Therapy,MSI RECRUITMENT,MSIR030818,1480.92
Department of Health,Leicestershire Partnership NHS Trust,17/08/18,OCCUPATIONAL THERAPIST - AGENCY,St Lukes Ward 3,MSI RECRUITMENT,MSIR030818,1191.53
Department of Health,Leicestershire Partnership NHS Trust,17/08/18,OCCUPATIONAL THERAPIST - AGENCY,Adult City West CMHT - BHSCC,MSI RECRUITMENT,MSIR270718,890.41
Department of Health,Leicestershire Partnership NHS Trust,17/08/18,PHYSIOTHERAPY - AGENCY,City Community Therapy,MSI RECRUITMENT,MSIR270718,773.03
Department of Health,Leicestershire Partnership NHS Trust,17/08/18,PHYSIOTHERAPY - AGENCY,City ICS,MSI RECRUITMENT,MSIR270718,1331.04
Department of Health,Leicestershire Partnership NHS Trust,17/08/18,PHYSIOTHERAPY - AGENCY,Coalville Snibston Ward,MSI RECRUITMENT,MSIR270718,1006.94
Department of Health,Leicestershire Partnership NHS Trust,17/08/18,PODIATRIST - AGENCY,County Podiatry Service,MSI RECRUITMENT,MSIR270718,2517.36
Department of Health,Leicestershire Partnership NHS Trust,17/08/18,OCCUPATIONAL THERAPIST - AGENCY,H&B Comm Hosp East Ward,MSI RECRUITMENT,MSIR270718,2018.21
Department of Health,Leicestershire Partnership NHS Trust,17/08/18,PHYSIOTHERAPY - AGENCY,H&B Comm Hosp East Ward,MSI RECRUITMENT,MSIR270718,1241.88
Department of Health,Leicestershire Partnership NHS Trust,17/08/18,PHYSIOTHERAPY - AGENCY,Integrated Care Service - Rutland,MSI RECRUITMENT,MSIR270718,1304.86
Department of Health,Leicestershire Partnership NHS Trust,17/08/18,PHYSIOTHERAPY - AGENCY,Learning Disabilities - Physiotherapy,MSI RECRUITMENT,MSIR270718,3449.23
Department of Health,Leicestershire Partnership NHS Trust,17/08/18,OCCUPATIONAL THERAPIST - AGENCY,MHSOP Community Therapy,MSI RECRUITMENT,MSIR270718,1142.48
Department of Health,Leicestershire Partnership NHS Trust,17/08/18,OCCUPATIONAL THERAPIST - AGENCY,MHSOP Inpatient Therapy - Evington,MSI RECRUITMENT,MSIR270718,1471.10
Department of Health,Leicestershire Partnership NHS Trust,17/08/18,Professional & Technical Agency,Medical & Neuro Psychology Services,MSI RECRUITMENT,MSIR270718,2460.13
Department of Health,Leicestershire Partnership NHS Trust,17/08/18,OCCUPATIONAL THERAPIST - AGENCY,South East ICS,MSI RECRUITMENT,MSIR270718,2357.53
Department of Health,Leicestershire Partnership NHS Trust,17/08/18,PHYSIOTHERAPY - AGENCY,South Leics MSK Physiotherapy,MSI RECRUITMENT,MSIR270718,2265.62
Department of Health,Leicestershire Partnership NHS Trust,17/08/18,SALT - AGENCY,Speech & Language Therapy,MSI RECRUITMENT,MSIR270718,1480.92
Department of Health,Leicestershire Partnership NHS Trust,17/08/18,OCCUPATIONAL THERAPIST - AGENCY,St Lukes Stroke Ward,MSI RECRUITMENT,MSIR270718,755.21
Department of Health,Leicestershire Partnership NHS Trust,17/08/18,UHL Facilities Management SLA,Estates Central Invoices To Recharge,UHL NHS TRUST (RWE),L0214011,827106.58
Department of Health,Leicestershire Partnership NHS Trust,17/08/18,UHL Facilities Management SLA,Estates Central Invoices To Recharge,UHL NHS TRUST (RWE),L0214012,827106.58
Department of Health,Leicestershire Partnership NHS Trust,17/08/18,NURSE - BAND 5 - AGENCY,AGNES UNIT POD 1,HCL NURSING,MAN28364,308.20
Department of Health,Leicestershire Partnership NHS Trust,17/08/18,Nurse - Band 6 -Agency,Adult City East CMHT - Merlyn Vaz,HCL NURSING,MAN28364,2657.84
Department of Health,Leicestershire Partnership NHS Trust,17/08/18,NURSE - BAND 5 - AGENCY,Ashby Ward (Bradgate Unit),HCL NURSING,MAN28364,669.77
Department of Health,Leicestershire Partnership NHS Trust,17/08/18,NURSE - BAND 5 - AGENCY,Aston Ward (Bradgate Unit),HCL NURSING,MAN28364,2225.50
Department of Health,Leicestershire Partnership NHS Trust,17/08/18,NURSE - BAND 2 - AGENCY,Beaumont Ward - Bradgate Unit,HCL NURSING,MAN28364,368.98
Department of Health,Leicestershire Partnership NHS Trust,17/08/18,NURSE - BAND 5 - AGENCY,Beaumont Ward - Bradgate Unit,HCL NURSING,MAN28364,799.04
Department of Health,Leicestershire Partnership NHS Trust,17/08/18,NURSE - BAND 2 - AGENCY,Belvoir Psychiatric Intensive Care Unit,HCL NURSING,MAN28364,926.34
Department of Health,Leicestershire Partnership NHS Trust,17/08/18,NURSE - BAND 5 - AGENCY,Belvoir Psychiatric Intensive Care Unit,HCL NURSING,MAN28364,945.38
Department of Health,Leicestershire Partnership NHS Trust,17/08/18,NURSE - BAND 2 - AGENCY,Bosworth Ward - Bradgate Unit,HCL NURSING,MAN28364,407.98
Department of Health,Leicestershire Partnership NHS Trust,17/08/18,NURSE - BAND 5 - AGENCY,Bosworth Ward - Bradgate Unit,HCL NURSING,MAN28364,266.74
Department of Health,Leicestershire Partnership NHS Trust,17/08/18,Nurse - Band 6 -Agency,Crisis Resolution,HCL NURSING,MAN28364,5466.38
Department of Health,Leicestershire Partnership NHS Trust,17/08/18,Nurse - Band 6 -Agency,Deliberate Self Harm,HCL NURSING,MAN28364,1872.96
Department of Health,Leicestershire Partnership NHS Trust,17/08/18,NURSE - BAND 2 - AGENCY,Griffin Ward (HPC),HCL NURSING,MAN28364,524.39
Department of Health,Leicestershire Partnership NHS Trust,17/08/18,NURSE - BAND 5 - AGENCY,Griffin Ward (HPC),HCL NURSING,MAN28364,2194.34
Department of Health,Leicestershire Partnership NHS Trust,17/08/18,NURSE - BAND 2 - AGENCY,Heather Ward,HCL NURSING,MAN28364,645.46
Department of Health,Leicestershire Partnership NHS Trust,17/08/18,NURSE - BAND 5 - AGENCY,Heather Ward,HCL NURSING,MAN28364,2422.48
Department of Health,Leicestershire Partnership NHS Trust,17/08/18,NURSE - BAND 2 - AGENCY,Mill Lodge,HCL NURSING,MAN28364,293.13
Department of Health,Leicestershire Partnership NHS Trust,17/08/18,NURSE - BAND 2 - AGENCY,Thornton Ward - Bradgate Unit,HCL NURSING,MAN28364,181.07
Department of Health,Leicestershire Partnership NHS Trust,17/08/18,NURSE - BAND 5 - AGENCY,Thornton Ward - Bradgate Unit,HCL NURSING,MAN28364,659.63
Department of Health,Leicestershire Partnership NHS Trust,21/08/18,Crs_NHS_LT1y -Resus Inventory Supplied.,Balance Sheet Collection,NHS SUPPLY CHAIN (ST1450),1019096558,52224.82
Department of Health,Leicestershire Partnership NHS Trust,21/08/18,Network Costs - WAN Maint,HIS Infrastructure,VIRGIN MEDIA BUSINESS,262421-146,46565.94
Department of Health,Leicestershire Partnership NHS Trust,23/08/18,Rates,"Coalville Community Hospital (P138, LPT)",NW LEICS DISTRICT COUNCIL,2001095931/18-19REVISED,51854.67
Department of Health,Leicestershire Partnership NHS Trust,23/08/18,Rates,"Coalville Community Hospital (P138, LPT)",NW LEICS DISTRICT COUNCIL,2001095931/18-19CRD,-49545.00
Department of Health,Leicestershire Partnership NHS Trust,24/08/18,Drugs,Dementia Related Drugs and Investigations,LLOYDS PHARMACY,72913,28730.60
Department of Health,Leicestershire Partnership NHS Trust,24/08/18,GP IT Expenditure,Area Team,DELL COMPUTERS,7402463278,28071.60
Department of Health,Leicestershire Partnership NHS Trust,24/08/18,GP IT Expenditure,Area Team,DELL COMPUTERS,7402463198,28071.60
Department of Health,Leicestershire Partnership NHS Trust,24/08/18,GP IT Expenditure,Area Team,DELL COMPUTERS,7402463184,28071.60
Department of Health,Leicestershire Partnership NHS Trust,24/08/18,GP IT Expenditure,Area Team,DELL COMPUTERS,7402463127,28071.60
Department of Health,Leicestershire Partnership NHS Trust,24/08/18,GP IT Expenditure,Area Team,DELL COMPUTERS,7402463142,28071.60
Department of Health,Leicestershire Partnership NHS Trust,24/08/18,GP IT Expenditure,Area Team,DELL COMPUTERS,7402463302,28071.60
Department of Health,Leicestershire Partnership NHS Trust,24/08/18,GP IT Expenditure,Area Team,DELL COMPUTERS,7402463321,28071.60
Department of Health,Leicestershire Partnership NHS Trust,24/08/18,GP IT Expenditure,Area Team,DELL COMPUTERS,7402463189,28071.60
Department of Health,Leicestershire Partnership NHS Trust,24/08/18,WIP Project Not in BS - Buildings excl Dwellings,Work in Progress,INTERSERVE CONSTRUCTION LTD,VEM54819,57697.18
Department of Health,Leicestershire Partnership NHS Trust,24/08/18,WIP Project Not in BS - Buildings excl Dwellings,Work in Progress,INTERSERVE CONSTRUCTION LTD,VEM54822,43837.24
Department of Health,Leicestershire Partnership NHS Trust,28/08/18,NURSE - BAND 5 - AGENCY,AGNES UNIT POD 1,HCL NURSING,MAN28398,340.40
Department of Health,Leicestershire Partnership NHS Trust,28/08/18,NURSE - BAND 5 - AGENCY,AGNES UNIT POD 2,HCL NURSING,MAN28398,298.06
Department of Health,Leicestershire Partnership NHS Trust,28/08/18,Nurse - Band 6 -Agency,Adult City East CMHT - Merlyn Vaz,HCL NURSING,MAN28398,1747.23
Department of Health,Leicestershire Partnership NHS Trust,28/08/18,NURSE - BAND 5 - AGENCY,Aston Ward (Bradgate Unit),HCL NURSING,MAN28398,2714.63
Department of Health,Leicestershire Partnership NHS Trust,28/08/18,NURSE - BAND 2 - AGENCY,Beaumont Ward - Bradgate Unit,HCL NURSING,MAN28398,315.21
Department of Health,Leicestershire Partnership NHS Trust,28/08/18,NURSE - BAND 5 - AGENCY,Beaumont Ward - Bradgate Unit,HCL NURSING,MAN28398,596.22
Department of Health,Leicestershire Partnership NHS Trust,28/08/18,NURSE - BAND 2 - AGENCY,Belvoir Psychiatric Intensive Care Unit,HCL NURSING,MAN28398,1081.63
Department of Health,Leicestershire Partnership NHS Trust,28/08/18,NURSE - BAND 5 - AGENCY,Belvoir Psychiatric Intensive Care Unit,HCL NURSING,MAN28398,669.77
Department of Health,Leicestershire Partnership NHS Trust,28/08/18,NURSE - BAND 2 - AGENCY,Bosworth Ward - Bradgate Unit,HCL NURSING,MAN28398,168.41
Department of Health,Leicestershire Partnership NHS Trust,28/08/18,NURSE - BAND 5 - AGENCY,Bosworth Ward - Bradgate Unit,HCL NURSING,MAN28398,1329.40
Department of Health,Leicestershire Partnership NHS Trust,28/08/18,Nurse - Band 6 -Agency,Crisis Resolution,HCL NURSING,MAN28398,3126.41
Department of Health,Leicestershire Partnership NHS Trust,28/08/18,Nurse - Band 6 -Agency,Deliberate Self Harm,HCL NURSING,MAN28398,2215.09
Department of Health,Leicestershire Partnership NHS Trust,28/08/18,NURSE - BAND 5 - AGENCY,Griffin Ward (HPC),HCL NURSING,MAN28398,2166.68
Department of Health,Leicestershire Partnership NHS Trust,28/08/18,NURSE - BAND 2 - AGENCY,Heather Ward,HCL NURSING,MAN28398,386.70
Department of Health,Leicestershire Partnership NHS Trust,28/08/18,NURSE - BAND 5 - AGENCY,Heather Ward,HCL NURSING,MAN28398,2036.35
Department of Health,Leicestershire Partnership NHS Trust,28/08/18,NURSE - BAND 5 - AGENCY,Mill Lodge,HCL NURSING,MAN28398,1226.14
Department of Health,Leicestershire Partnership NHS Trust,28/08/18,NURSE - BAND 2 - AGENCY,Phoenix Ward (HPC),HCL NURSING,MAN28398,257.27
Department of Health,Leicestershire Partnership NHS Trust,28/08/18,NURSE - BAND 2 - AGENCY,Thornton Ward - Bradgate Unit,HCL NURSING,MAN28398,159.02
Department of Health,Leicestershire Partnership NHS Trust,28/08/18,Crs_NHS_LT1y -Resus Inventory Supplied.,Balance Sheet Collection,NHS SUPPLY CHAIN (ST1450),1019101095,42400.16
Department of Health,Leicestershire Partnership NHS Trust,29/08/18,GP IT Expenditure,Area Team,DELL COMPUTERS,7402463174,28071.60
Department of Health,Leicestershire Partnership NHS Trust,29/08/18,Medical Equipment Repairs / Maintenance,Medical Devices Maintenance (LPT),NHS SUPPLY CHAIN (ST1450),2019002476,83635.18
Department of Health,Leicestershire Partnership NHS Trust,29/08/18,Nurse - Band 6 -Agency,Adult City East CMHT - Merlyn Vaz,HCL NURSING,MAN28196DUP,-1197.41
Department of Health,Leicestershire Partnership NHS Trust,29/08/18,Nurse - Band 6 -Agency,Adult County Charnwood CMHT - Loughborough Base,HCL NURSING,MAN28196DUP,-1883.09
Department of Health,Leicestershire Partnership NHS Trust,29/08/18,Nurse - Band 6 -Agency,Adult County North West Leicestershire CMHT,HCL NURSING,MAN28196DUP,-1308.68
Department of Health,Leicestershire Partnership NHS Trust,29/08/18,NURSE - BAND 5 - AGENCY,Agnes Unit Management,HCL NURSING,MAN28196DUP,-300.32
Department of Health,Leicestershire Partnership NHS Trust,29/08/18,NURSE - BAND 5 - AGENCY,Ashby Ward (Bradgate Unit),HCL NURSING,MAN28196DUP,-664.62
Department of Health,Leicestershire Partnership NHS Trust,29/08/18,NURSE - BAND 5 - AGENCY,Aston Ward (Bradgate Unit),HCL NURSING,MAN28196DUP,-2858.73
Department of Health,Leicestershire Partnership NHS Trust,29/08/18,NURSE - BAND 2 - AGENCY,Beaumont Ward - Bradgate Unit,HCL NURSING,MAN28196DUP,-190.22
Department of Health,Leicestershire Partnership NHS Trust,29/08/18,NURSE - BAND 5 - AGENCY,Beaumont Ward - Bradgate Unit,HCL NURSING,MAN28196DUP,-675.51
Department of Health,Leicestershire Partnership NHS Trust,29/08/18,NURSE - BAND 5 - AGENCY,Bosworth Ward - Bradgate Unit,HCL NURSING,MAN28196DUP,-1060.95
Department of Health,Leicestershire Partnership NHS Trust,29/08/18,Nurse - Band 6 -Agency,Crisis Resolution,HCL NURSING,MAN28196DUP,-5164.66
Department of Health,Leicestershire Partnership NHS Trust,29/08/18,Nurse - Band 6 -Agency,Deliberate Self Harm,HCL NURSING,MAN28196DUP,-4302.01
Department of Health,Leicestershire Partnership NHS Trust,29/08/18,NURSE - BAND 5 - AGENCY,Griffin Ward (HPC),HCL NURSING,MAN28196DUP,-2781.07
Department of Health,Leicestershire Partnership NHS Trust,29/08/18,NURSE - BAND 5 - AGENCY,Heather Ward,HCL NURSING,MAN28196DUP,-2111.81
Department of Health,Leicestershire Partnership NHS Trust,29/08/18,NURSE - BAND 5 - AGENCY,Mill Lodge,HCL NURSING,MAN28196DUP,-965.93
Department of Health,Leicestershire Partnership NHS Trust,29/08/18,NURSE - BAND 2 - AGENCY,Phoenix Ward (HPC),HCL NURSING,MAN28196DUP,-634.11
Department of Health,Leicestershire Partnership NHS Trust,29/08/18,NURSE - BAND 2 - AGENCY,Sycamore (Willows),HCL NURSING,MAN28196DUP,-264.35
Department of Health,Leicestershire Partnership NHS Trust,29/08/18,NURSE - BAND 2 - AGENCY,Thornton Ward - Bradgate Unit,HCL NURSING,MAN28196DUP,-198.29
Department of Health,Leicestershire Partnership NHS Trust,29/08/18,NURSE - BAND 5 - AGENCY,Thornton Ward - Bradgate Unit,HCL NURSING,MAN28196DUP,-259.30
Department of Health,Leicestershire Partnership NHS Trust,29/08/18,NURSE - BAND 2 - AGENCY,Watermead Ward (Bradgate Unit),HCL NURSING,MAN28196DUP,-415.58
Department of Health,Leicestershire Partnership NHS Trust,29/08/18,NURSE - BAND 5 - AGENCY,Watermead Ward (Bradgate Unit),HCL NURSING,MAN28196DUP,-726.86
Department of Health,Leicestershire Partnership NHS Trust,30/08/18,Rent,"OSL House (P54, LPT)",CABOT TRUSTEES LTD,048.,38990.59
Department of Health,Leicestershire Partnership NHS Trust,30/08/18,Med GP Trainees,Medical Trainees,ST.HELENS & KNOWSLEY NHS TRUST,16777669,60000.00
